fUSD/lending_fUSD_20251219
["ID","MTS","AMOUNT","RATE_DAILY","PERIOD"]
[399226957,1766187487904,569.72,9.889e-05,2]
[399226958,1766187488332,569.72,0.00010218,2]
[399226959,1766187488553,569.72,0.00010548,2]
[399226960,1766187488747,569.72,0.00010878,2]
[399226961,1766187488951,569.72,0.00011207,2]
[399226962,1766187489146,569.72,0.00011537,2]
[399226963,1766187489360,569.72,0.00011866,2]
[399226967,1766187495087,-270.12003313,0.00012196,2]
[399226968,1766187496631,-269.07888675,0.00012196,2]
[399227050,1766187719655,-30.52108012,0.00012196,2]
[399227051,1766187719680,-141.0879611,0.00012229,2]
[399227052,1766187721795,-261.88604746,0.00012229,2]
[399227058,1766187742417,200.0,0.00011781,2]
[399227062,1766187755413,200.0,0.00011836,2]
[399227068,1766187794529,-195.03599144,0.00012229,2]
[399227069,1766187794552,-195.0,0.00012292,2]
[399227070,1766187794574,-209.02475343,0.00012355,2]
[399227073,1766187798295,-40.97524657,0.00012355,2]
[399227074,1766187798319,-121.61835923,0.00012408,2]
[399227101,1766187855798,200.0,0.00012055,2]
[399227206,1766188095073,-206.68529899,0.00012442,2]
[399227209,1766188121429,1000.0,0.0001198,2]
[399227237,1766188201329,2420.62,0.0001184,2]
[399227263,1766188232066,-43.31470101,0.00012442,2]
[399227264,1766188232077,-195.0,0.00012461,2]
[399227265,1766188232086,-150.0,0.00012481,2]
[399227266,1766188232096,-265.50742601,0.00012489,2]
[399227267,1766188232107,-34.49257399,0.00012489,2]
[399227268,1766188232116,-952.95540091,0.00012489,2]
[399227269,1766188232127,-247.04459909,0.00012489,2]
[399227270,1766188232137,-611.64149758,0.0001249,2]
[399227271,1766188232146,-568.32285331,0.0001249,2]
[399227272,1766188232157,-40425.15555852,0.0001249,2]
[399227273,1766188232166,-228.63794778,0.0001249,2]
[399227274,1766188232176,-503.7,0.00012502,2]
[399227275,1766188232185,-569.72,0.00012526,2]
[399227276,1766188232194,-500.0,0.00012588,2]
[399227277,1766188232203,-842.87,0.00012588,2]
[399227278,1766188232212,-241.05061111,0.00012588,2]
[399227279,1766188232222,-300.0,0.00012589,2]
[399227280,1766188232231,-860084.54295695,0.00012589,2]
[399227281,1766188232242,-22223.92426652,0.00012589,2]
[399227282,1766188232254,-26311.27890793,0.00012589,2]
[399227283,1766188232265,-51132.34273151,0.00012589,2]
[399227284,1766188232276,-297.53721885,0.00012589,2]
[399227285,1766188232310,-261.64557536,0.00012489,2]
[399227286,1766188232319,-2319.39233932,0.00012589,2]
[399227287,1766188232331,-887.59509007,0.00012589,2]
[399227288,1766188232341,-6324.08845917,0.00012589,2]
[399227289,1766188232352,-477.23143448,0.00012589,2]
[399227290,1766188232366,-876.7276389,0.00012589,2]
[399227293,1766188232413,-270.69232887,0.00012489,2]
[399227295,1766188232424,-229.30767113,0.00012489,2]
[399227297,1766188232435,-10968.18303578,0.00012589,2]
[399227303,1766188232479,-500.0,0.00012489,2]
[399227305,1766188232488,-2304.13271573,0.00012589,2]
[399227307,1766188232499,-1063.55689978,0.00012589,2]
[399227309,1766188232511,-347.43508066,0.00012589,2]
[399227312,1766188232521,-6030.11,0.00012589,2]
[399227314,1766188232532,-1070.98248626,0.00012589,2]
[399227317,1766188232551,-529.88865121,0.00012589,2]
[399227319,1766188232562,-289.96440231,0.00012589,2]
[399227321,1766188232573,-5571.38598384,0.00012589,2]
[399227324,1766188232584,-889.69970073,0.00012589,2]
[399227326,1766188232593,-6687.7632,0.0001259,2]
[399227328,1766188232603,-235.8868,0.0001259,2]
[399227330,1766188232611,-2500.0,0.00012594,2]
[399227331,1766188232621,-150.0,0.00012686,2]
[399227333,1766188232630,-3372.3,0.00012689,2]
[399227335,1766188232639,-6435.74642325,0.00012689,2]
[399227356,1766188232829,-1991.73526069,0.00012689,2]
[399227359,1766188238819,-500.0,0.00012489,2]
[399227360,1766188238829,-494.46681482,0.00012489,2]
[399227361,1766188238842,-5.53318518,0.00012489,2]
[399227362,1766188238852,-500.0,0.00012489,2]
[399227363,1766188238862,-500.0,0.00012489,2]
[399227364,1766188238873,-500.0,0.00012489,2]
[399227365,1766188238883,-500.0,0.00012489,2]
[399227366,1766188238893,-500.0,0.00012489,2]
[399227367,1766188238903,-19.40681513,0.00012489,2]
[399227368,1766188238915,-480.59318487,0.00012489,2]
[399227369,1766188238925,-500.0,0.00012489,2]
[399227370,1766188238935,-500.0,0.00012489,2]
[399227371,1766188238945,-500.0,0.00012489,2]
[399227372,1766188238954,-500.0,0.00012489,2]
[399227373,1766188238964,-388.75461648,0.00012489,2]
[399227374,1766188238974,-500.0,0.00012489,2]
[399227375,1766188238984,-500.0,0.00012489,2]
[399227376,1766188238994,-500.0,0.00012489,2]
[399227377,1766188239004,-500.0,0.00012489,2]
[399227378,1766188239013,-500.0,0.00012489,2]
[399227379,1766188239023,-500.0,0.00012489,2]
[399227380,1766188239032,-500.0,0.00012489,2]
[399227381,1766188239042,-500.0,0.00012489,2]
[399227382,1766188239052,-500.0,0.00012489,2]
[399227383,1766188239062,-500.0,0.00012489,2]
[399227384,1766188239072,-500.0,0.00012489,2]
[399227385,1766188239082,-500.0,0.00012489,2]
[399227386,1766188239092,-500.0,0.00012489,2]
[399227387,1766188239102,-500.0,0.00012489,2]
[399227388,1766188239112,-500.0,0.00012489,2]
[399227389,1766188239122,-1572.50831606,0.00012689,2]
[399227390,1766188239132,-9999.99,0.00012689,2]
[399227391,1766188239141,-150.99,0.00012689,2]
[399227392,1766188239151,-9999.99,0.00012689,2]
[399227393,1766188239164,-999.99,0.00012689,2]
[399227394,1766188239174,-499.99,0.00012689,2]
[399227395,1766188239184,-299.99,0.00012689,2]
[399227396,1766188239195,-150.99,0.00012689,2]
[399227397,1766188239205,-1451.47917479,0.00012689,2]
[399227398,1766188239217,-779.24362248,0.00012689,2]
[399227399,1766188239228,-7769.26720273,0.00012689,2]
[399227400,1766188239238,-157471.28487317,0.00012694,2]
[399227401,1766188239247,-1852.42,0.00012706,2]
[399227402,1766188239257,-3561.989,0.00012779,2]
[399227403,1766188239272,-200.643,0.00012779,2]
[399227404,1766188239282,-184.78003764,0.0001279,2]
[399227405,1766188239291,-500.0,0.00012862,2]
[399227406,1766188239301,-842.87,0.00012862,2]
[399227407,1766188239311,-200.0,0.00012881,2]
[399227408,1766188239321,-215.0738,0.00012881,2]
[399227409,1766188239331,-151.0,0.00012881,2]
[399227410,1766188239341,-151.0,0.00012881,2]
[399227411,1766188239355,-151.0,0.00012881,2]
[399227412,1766188239368,-151.0,0.00012881,2]
[399227413,1766188239378,-151.0,0.00012881,2]
[399227414,1766188239387,-151.0,0.00012881,2]
[399227415,1766188239397,-151.0,0.00012881,2]
[399227416,1766188239409,-151.0,0.00012881,2]
[399227417,1766188239419,-151.0,0.00012881,2]
[399227418,1766188239428,-151.0,0.00012881,2]
[399227419,1766188239439,-151.0,0.00012881,2]
[399227420,1766188239449,-151.0,0.00012881,2]
[399227421,1766188239460,-151.0,0.00012881,2]
[399227422,1766188239469,-151.0,0.00012881,2]
[399227423,1766188239479,-151.0,0.00012881,2]
[399227424,1766188239489,-151.0,0.00012881,2]
[399227425,1766188239499,-151.0,0.00012881,2]
[399227426,1766188239508,-151.0,0.00012881,2]
[399227427,1766188239519,-151.0,0.00012881,2]
[399227428,1766188239530,-151.0,0.00012881,2]
[399227429,1766188239540,-151.0,0.00012881,2]
[399227430,1766188239549,-151.0,0.00012881,2]
[399227431,1766188239564,-151.0,0.00012881,2]
[399227432,1766188239575,-151.0,0.00012881,2]
[399227433,1766188239586,-151.0,0.00012881,2]
[399227434,1766188239596,-200.0,0.00012881,2]
[399227435,1766188239605,-151.0,0.00012881,2]
[399227436,1766188239615,-151.0,0.00012881,2]
[399227437,1766188239624,-151.0,0.00012881,2]
[399227438,1766188239633,-151.0,0.00012881,2]
[399227439,1766188239643,-151.0,0.00012881,2]
[399227440,1766188239652,-151.0,0.00012881,2]
[399227441,1766188239662,-500.0,0.00012881,2]
[399227442,1766188239671,-500.0,0.00012881,2]
[399227443,1766188239681,-500.0,0.00012881,2]
[399227444,1766188239690,-500.0,0.00012881,2]
[399227445,1766188239699,-500.0,0.00012881,2]
[399227446,1766188239709,-500.0,0.00012881,2]
[399227447,1766188239719,-500.0,0.00012881,2]
[399227448,1766188239729,-500.0,0.00012881,2]
[399227449,1766188239738,-500.0,0.00012881,2]
[399227450,1766188239751,-500.0,0.00012881,2]
[399227451,1766188239762,-500.0,0.00012881,2]
[399227452,1766188239772,-500.0,0.00012881,2]
[399227453,1766188239782,-500.0,0.00012881,2]
[399227454,1766188239792,-500.0,0.00012881,2]
[399227455,1766188239801,-500.0,0.00012881,2]
[399227456,1766188239811,-500.0,0.00012881,2]
[399227457,1766188239821,-500.0,0.00012881,2]
[399227458,1766188239831,-500.0,0.00012881,2]
[399227459,1766188239840,-500.0,0.00012881,2]
[399227460,1766188239850,-500.0,0.00012881,2]
[399227461,1766188239859,-500.0,0.00012881,2]
[399227462,1766188239871,-500.0,0.00012881,2]
[399227463,1766188239881,-500.0,0.00012881,2]
[399227464,1766188239891,-360.89189054,0.00012905,2]
[399227465,1766188239900,-40993.47841183,0.0001298,2]
[399227466,1766188239910,-274.0,0.00012988,2]
[399227467,1766188239921,-274.0,0.00013014,2]
[399227468,1766188239931,-448.0,0.0001304,2]
[399227469,1766188239943,-371.0,0.00013066,2]
[399227470,1766188239953,-611.64149756,0.0001312,2]
[399227471,1766188239963,-842.87,0.00013136,2]
[399227472,1766188239973,-5497.500698,0.00013298,2]
[399227473,1766188239983,-500.0,0.00013348,2]
[399227474,1766188239992,-842.87,0.0001341,2]
[399227475,1766188240002,-200.0,0.00013429,2]
[399227476,1766188240012,-200.0,0.00013429,2]
[399227477,1766188240021,-500.0,0.00013429,2]
[399227478,1766188240031,-40993.47841183,0.0001347,2]
[399227479,1766188240040,-184.78003763,0.00013475,2]
[399227480,1766188240050,-1000.0,0.00013478,2]
[399227481,1766188240059,-195.0,0.00013649,2]
[399227482,1766188240069,-250.0,0.00013649,2]
[399227483,1766188240078,-5922.2596812,0.00013673,2]
[399227484,1766188240087,-842.87,0.00013684,2]
[399227485,1766188240097,-195.0,0.00013686,2]
[399227486,1766188240107,-250.0,0.00013686,2]
[399227487,1766188240116,-500.0,0.00013698,2]
[399227488,1766188240126,-467.07246893,0.00013698,2]
[399227489,1766188240138,-500.0,0.00013698,2]
[399227490,1766188240147,-500.0,0.00013698,2]
[399227491,1766188240157,-500.0,0.00013698,2]
[399227492,1766188240167,-500.0,0.00013698,2]
[399227493,1766188240177,-527.06873732,0.00013698,2]
[399227494,1766188240186,-444.0,0.00013699,2]
[399227495,1766188240196,-396.09,0.00013699,2]
[399227496,1766188240205,-180.85216593,0.00013699,2]
[399227497,1766188240215,-2748.33,0.000137,2]
[399227499,1766188240224,-2748.33,0.000137,2]
[399227501,1766188240233,-2748.33,0.000137,2]
[399227502,1766188240243,-2748.33,0.000137,2]
[399227504,1766188240252,-2748.33,0.000137,2]
[399227506,1766188240263,-3240.0,0.00013701,2]
[399227508,1766188240272,-420.0,0.00013703,2]
[399227510,1766188240282,-1680.0,0.00013738,2]
[399227511,1766188240291,-611.64149756,0.0001375,2]
[399227513,1766188240301,-500.0,0.00013773,2]
[399227514,1766188240310,-571.76647118,0.00013773,2]
[399227515,1766188240320,-594.24401779,0.00013773,2]
[399227516,1766188240329,-500.0,0.00013773,2]
[399227517,1766188240338,-500.0,0.00013773,2]
[399227518,1766188240347,-500.0,0.00013773,2]
[399227519,1766188240356,-255.0,0.0001379,2]
[399227520,1766188240370,-842.87,0.00013958,2]
[399227521,1766188240379,-40993.47841183,0.0001396,2]
[399227522,1766188240388,-200.0,0.00013977,2]
[399227523,1766188240397,-200.0,0.00013977,2]
[399227524,1766188240407,-500.0,0.00013977,2]
[399227525,1766188240416,-33486.8341,0.00014119,2]
[399227526,1766188240425,-1000.0,0.00014119,2]
[399227527,1766188240435,-200.0,0.00014147,2]
[399227528,1766188240445,-184.78003763,0.0001416,2]
[399227529,1766188240455,-500.0,0.00014219,2]
[399227530,1766188240464,-500.0,0.00014219,2]
[399227531,1766188240473,-500.0,0.00014219,2]
[399227532,1766188240483,-500.0,0.00014219,2]
[399227533,1766188240492,-500.0,0.00014219,2]
[399227534,1766188240502,-334.65492726,0.00014219,2]
[399227535,1766188240511,-842.87,0.00014232,2]
[399227536,1766188240527,-500.0,0.00014284,2]
[399227537,1766188240539,-1000.0,0.00014321,2]
[399227538,1766188240549,-1000.71124086,0.00014321,2]
[399227539,1766188240559,-611.64149756,0.0001438,2]
[399227540,1766188240569,-40993.47841183,0.0001445,2]
[399227541,1766188240578,-842.92647979,0.00014506,2]
[399227542,1766188240588,-184.78003763,0.00014845,2]
[399227543,1766188240600,-40993.47841183,0.0001494,2]
[399227544,1766188240610,-1000.0,0.00014975,2]
[399227545,1766188240621,-433.0,0.00014995,2]
[399227546,1766188240632,-166.66,0.00015001,2]
[399227547,1766188240642,-611.64149756,0.0001501,2]
[399227548,1766188240653,-500.0,0.00015073,2]
[399227549,1766188240663,-1006.0,0.00015112,2]
[399227550,1766188240674,-150.0,0.00015288,2]
[399227551,1766188240685,-150.0,0.00015288,2]
[399227552,1766188240694,-150.0,0.00015288,2]
[399227553,1766188240703,-150.0,0.00015288,2]
[399227554,1766188240718,-150.0,0.00015288,2]
[399227555,1766188240728,-150.0,0.00015288,2]
[399227556,1766188240739,-150.0,0.00015288,2]
[399227557,1766188240749,-150.0,0.00015288,2]
[399227558,1766188240759,-151.0803606,0.00015288,2]
[399227559,1766188240769,-150.0,0.00015288,2]
[399227560,1766188240778,-150.0,0.00015288,2]
[399227561,1766188240788,-166.66,0.00015317,2]
[399227562,1766188240798,-40993.47841183,0.0001543,2]
[399227563,1766188240807,-94.96871254,0.0001553,2]
[399227564,1766188240827,-89.81132509,0.0001553,2]
[399227565,1766188240837,-166.66,0.00015633,2]
[399227566,1766188240847,-611.64149756,0.0001564,2]
[399227567,1766188240856,-500.0,0.00015835,2]
[399227568,1766188240866,-150.0,0.00015854,2]
[399227569,1766188240875,-150.0,0.00015854,2]
[399227570,1766188240885,-150.0,0.00015854,2]
[399227571,1766188240895,-371.5742633,0.000159,2]
[399227572,1766188240904,-5581.19914764,0.0001592,2]
[399227573,1766188240920,-35412.27926419,0.0001592,2]
[399227574,1766188240930,-166.66,0.00015948,2]
[399227575,1766188240938,-500.0,0.00015999,2]
[399227576,1766188240948,-1006.0,0.00016105,2]
[399227577,1766188240958,-150.0,0.00016137,2]
[399227578,1766188240967,-150.0,0.00016137,2]
[399227579,1766188240977,-150.0,0.00016137,2]
[399227580,1766188240987,-184.78003763,0.00016215,2]
[399227581,1766188240996,-166.66,0.00016264,2]
[399227582,1766188241006,-611.64149756,0.0001627,2]
[399227583,1766188241016,-714.0,0.00016289,2]
[399227584,1766188241025,-500.0,0.000163,2]
[399227585,1766188241035,-500.0,0.000163,2]
[399227586,1766188241045,-500.0,0.000163,2]
[399227587,1766188241054,-500.0,0.000163,2]
[399227588,1766188241064,-500.0,0.000163,2]
[399227589,1766188241073,-211.82211152,0.000163,2]
[399227590,1766188241082,-500.0,0.000163,2]
[399227591,1766188241091,-500.0,0.000163,2]
[399227592,1766188241101,-500.0,0.000163,2]
[399227593,1766188241111,-500.0,0.000163,2]
[399227594,1766188241120,-500.0,0.000163,2]
[399227595,1766188241130,-500.0,0.000163,2]
[399227596,1766188241139,-412.77072923,0.000163,2]
[399227597,1766188241148,-500.0,0.000163,2]
[399227598,1766188241158,-29060.51469796,0.0001641,2]
[399227599,1766188241173,-7325.901737,0.0001641,2]
[399227600,1766188241229,-2064.347687,0.0001641,2]
[399227601,1766188241246,-482.6006894,0.0001641,2]
[399227602,1766188241258,-334.96069996,0.0001641,2]
[399227603,1766188241269,-1725.15290051,0.0001641,2]
[399227604,1766188241279,-150.0,0.0001642,2]
[399227605,1766188241288,-150.0,0.0001642,2]
[399227606,1766188241297,-150.0,0.0001642,2]
[399227607,1766188241307,-673.15074804,0.00016438,2]
[399227608,1766188241316,-673.15074804,0.00016438,2]
[399227609,1766188241325,-673.15074804,0.00016438,2]
[399227610,1766188241334,-673.15074804,0.00016438,2]
[399227611,1766188241344,-673.15074804,0.00016438,2]
[399227612,1766188241353,-673.15074804,0.00016438,2]
[399227613,1766188241366,-673.15074804,0.00016438,2]
[399227614,1766188241375,-673.15074804,0.00016438,2]
[399227615,1766188241385,-673.15074804,0.00016438,2]
[399227616,1766188241394,-673.15074804,0.00016438,2]
[399227617,1766188241404,-673.15074804,0.00016438,2]
[399227618,1766188241413,-56.49887105,0.00016438,2]
[399227619,1766188241424,-616.65187699,0.00016438,2]
[399227620,1766188241435,-673.15074804,0.00016438,2]
[399227621,1766188241444,-673.15074804,0.00016438,2]
[399227622,1766188241454,-431.51179004,0.00016438,2]
[399227623,1766188241465,-241.638958,0.00016438,2]
[399227624,1766188241475,-673.15074804,0.00016438,2]
[399227625,1766188241485,-673.15074804,0.00016438,2]
[399227626,1766188241495,-673.15074804,0.00016438,2]
[399227627,1766188241504,-673.15074804,0.00016438,2]
[399227628,1766188241514,-673.15074804,0.00016438,2]
[399227629,1766188241523,-349.84934433,0.00016438,2]
[399227630,1766188241534,-323.30140371,0.00016438,2]
[399227631,1766188241544,-673.15074804,0.00016438,2]
[399227632,1766188241553,-673.15074804,0.00016438,2]
[399227633,1766188241563,-673.15074804,0.00016438,2]
[399227634,1766188241572,-673.15074804,0.00016438,2]
[399227635,1766188241581,-673.15074804,0.00016438,2]
[399227636,1766188241591,-673.15074804,0.00016438,2]
[399227637,1766188241600,-673.15074804,0.00016438,2]
[399227638,1766188241610,-673.15074804,0.00016438,2]
[399227639,1766188241619,-673.15074804,0.00016438,2]
[399227640,1766188241629,-673.15074804,0.00016438,2]
[399227641,1766188241638,-545.19111589,0.00016438,2]
[399227642,1766188241650,-127.95963215,0.00016438,2]
[399227643,1766188241659,-673.15074804,0.00016438,2]
[399227645,1766188241669,-673.15074804,0.00016438,2]
[399227647,1766188241678,-673.15074804,0.00016438,2]
[399227649,1766188241688,-673.15074804,0.00016438,2]
[399227651,1766188241697,-673.15074804,0.00016438,2]
[399227653,1766188241707,-673.15074804,0.00016438,2]
[399227655,1766188241716,-673.15074804,0.00016438,2]
[399227657,1766188241725,-250.0,0.0001644,2]
[399227659,1766188241734,-1000.0,0.00016473,2]
[399227661,1766188241744,-166.66,0.0001658,2]
[399227663,1766188241754,-163.22,0.00016712,2]
[399227665,1766188241763,-1000.0,0.00016848,2]
[399227667,1766188241772,-1000.0,0.00016848,2]
[399227669,1766188241781,-1022.13362004,0.00016848,2]
[399227671,1766188241791,-200.0,0.00016864,2]
[399227673,1766188241800,-184.78003763,0.000169,2]
[399227675,1766188241810,-10000.0,0.000169,2]
[399227677,1766188241819,-337.1404708,0.000169,2]
[399227679,1766188241828,-1011.63111114,0.000169,2]
[399227680,1766188241838,-611.64149756,0.000169,2]
[399227681,1766188241847,-4018.74038058,0.000169,2]
[399227682,1766188241857,-2520.42280974,0.000169,2]
[399227683,1766188241866,-204.48147532,0.00016908,2]
[399227684,1766188241876,-3596.28922754,0.00016936,2]
[399227685,1766188241885,-83366.9218255,0.00016981,2]
[399227686,1766188241895,-3616.1858089,0.00016981,2]
[399227687,1766188241904,-3117.5478881,0.00016982,2]
[399227688,1766188241914,-173422.7564005,0.00016982,2]
[399227689,1766188241923,-3117.547888,0.00016982,2]
[399227690,1766188241933,-150.0,0.00016986,2]
[399227691,1766188241943,-150.0,0.00016986,2]
[399227692,1766188241952,-150.0,0.00016986,2]
[399227693,1766188241961,-150.0,0.00016986,2]
[399227694,1766188241970,-150.0,0.00016986,2]
[399227695,1766188241979,-150.0,0.00016986,2]
[399227696,1766188241989,-150.0,0.00016986,2]
[399227697,1766188241998,-256.28042139,0.00016999,2]
[399227698,1766188242008,-300.0,0.00016999,2]
[399227699,1766188242018,-3384766.38239624,0.00017,2]
[399227700,1766188242029,-7742873.5145056,0.00017,2]
[399227718,1766188243478,-553.85569524,0.00012587,2]
[399227719,1766188243501,-999446.14430476,0.00012587,2]
[399227720,1766188243511,-753.0,0.00013166,2]
[399227721,1766188243520,-285.0,0.0001534,2]
[399227722,1766188243529,-1639390.60457324,0.00017,2]
[399227725,1766188246345,-1197.0,0.000169,2]
[399227731,1766188267820,1249.611024,7.945e-05,2]
[399227732,1766188268413,-275.37446816,0.00012389,2]
[399227874,1766188529599,-6.0306584,0.00012389,2]
[399227875,1766188529628,-154.03290208,0.00012389,2]
[399227876,1766188531714,-182.59476096,0.00012389,2]
[399227877,1766188534450,-206.81189942,0.00012389,2]
[399227878,1766188536344,-237.13632174,0.00012389,2]
[399227879,1766188538542,-299.94059175,0.00012389,2]
[399227880,1766188540042,-333.33,0.00012389,2]
[399227881,1766188542676,-283.31888554,0.00012389,2]
[399227882,1766188545884,-307.49912827,0.00012389,2]
[399227883,1766188547378,-269.51327146,0.00012389,2]
[399227884,1766188553411,-193.0,0.00012389,2]
[399227885,1766188554826,-554.79132082,0.00012389,2]
[399227886,1766188556318,-280.22287765,0.00012389,2]
[399227887,1766188558664,-204.03356152,0.00012389,2]
[399227888,1766188561292,-394.99965685,0.00012389,2]
[399227889,1766188563969,-534.03598684,0.00012389,2]
[399227891,1766188567381,-152.46579972,0.00012389,2]
[399227893,1766188569449,-167.68895809,0.00012389,2]
[399227894,1766188571504,-178.35902286,0.00012389,2]
[399227895,1766188574683,-237.16760672,0.00012389,2]
[399227896,1766188577007,-276.18542143,0.00012389,2]
[399227897,1766188579728,-395.80397565,0.00012389,2]
[399227898,1766188583409,-267.01941217,0.00012389,2]
[399227917,1766188638098,-344.71755588,0.00012307,2]
[399227919,1766188642511,-160.87396896,0.00012307,2]
[399227920,1766188645941,-57.21872824,0.00012307,2]
[399227921,1766188645964,-170.07244356,0.00012348,2]
[399227922,1766188647997,-24.92755644,0.00012348,2]
[399227923,1766188648020,-150.0,0.00012388,2]
[399227924,1766188648047,-74.03174729,0.00012388,2]
[399227925,1766188649527,-107.96825271,0.00012388,2]
[399227926,1766188649562,-146.03174729,0.00012389,2]
[399227927,1766188651170,-228.13694261,0.00012389,2]
[399227928,1766188653765,-158.19242515,0.00012389,2]
[399227929,1766188655265,-250.99847565,0.00012389,2]
[399227930,1766188657906,-388.3299744,0.00012389,2]
[399227931,1766188660100,-261.79085565,0.00012389,2]
[399227932,1766188662764,-267.00891804,0.00012389,2]
[399227933,1766188665212,-219.41245077,0.00012389,2]
[399227934,1766188666751,-308.00930881,0.00012389,2]
[399227935,1766188668860,-192.6675576,0.00012389,2]
[399227936,1766188670407,-181.34796313,0.00012389,2]
[399227938,1766188673715,-189.02492322,0.00012388,2]
[399227945,1766188675890,-208.88140583,0.00012388,2]
[399227946,1766188678189,-102.09367095,0.00012388,2]
[399227947,1766188678213,-78.62476948,0.00012388,2]
[399227948,1766188680882,-126.44043702,0.00012388,2]
[399227949,1766188680910,-92.78818308,0.00012389,2]
[399227951,1766188682537,-922.95924708,0.00012389,2]
[399227952,1766188684392,313.9,0.0001184,2]
[399227953,1766188685626,-176.06548637,0.00012307,2]
[399227954,1766188687239,-711.27225076,0.00012307,2]
[399227956,1766188688729,-236.05727591,0.00012307,2]
[399227958,1766188691353,-184.73444802,0.00012307,2]
[399227959,1766188694084,-196.42208196,0.00012307,2]
[399227960,1766188694109,-198.1970372,0.00012307,2]
[399227961,1766188697365,-306.08161063,0.00012307,2]
[399227962,1766188699980,-39.31347421,0.00012307,2]
[399227963,1766188700003,-155.68652579,0.00012388,2]
[399227964,1766188703364,-300.0,0.00012388,2]
[399227965,1766188705526,-252.84888257,0.00012388,2]
[399227966,1766188708125,-278.54693503,0.00012388,2]
[399227967,1766188711997,-212.91765661,0.00012388,2]
[399227968,1766188712026,-95.08095456,0.00012389,2]
[399227969,1766188714675,-187.96031507,0.00012389,2]
[399227970,1766188717902,-191.35634983,0.00012389,2]
[399227971,1766188720513,-243.29042024,0.00012389,2]
[399227972,1766188721425,2247.18,0.00012049,2]
[399227973,1766188722064,-172.1943982,0.00012389,2]
[399227974,1766188724329,-378.76125968,0.00012389,2]
[399227976,1766188726051,-152.35,0.00012389,2]
[399227977,1766188727950,-222.55697554,0.00012389,2]
[399227978,1766188731125,-151.12526925,0.00012389,2]
[399227979,1766188733831,-265.14528797,0.00012389,2]
[399227980,1766188735977,-207.46589534,0.00012389,2]
[399227981,1766188739279,-285.33112875,0.00012389,2]
[399227982,1766188742110,-300.0,0.00012388,2]
[399227983,1766188742137,-54.00231761,0.00012389,2]
[399227987,1766188744267,-250.0,0.00012389,2]
[399227988,1766188746301,-278.73617293,0.00012389,2]
[399227989,1766188748400,-154.22604213,0.00012389,2]
[399227991,1766188750366,-152.83,0.00012389,2]
[399227992,1766188753064,-233.58226999,0.00012389,2]
[399227993,1766188755735,-228.71697674,0.00012389,2]
[399227995,1766188759083,-326.30602263,0.00012389,2]
[399227996,1766188760588,-440.51838402,0.00012389,2]
[399227997,1766188762053,-221.26382707,0.00012389,2]
[399227999,1766188763491,-282.2784794,0.00012389,2]
[399228000,1766188765906,-210.0,0.00012307,2]
[399228001,1766188767335,-283.19962693,0.00012307,2]
[399228003,1766188771441,-421.96431454,0.00012307,2]
[399228004,1766188773746,-346.07597434,0.00012307,2]
[399228005,1766188776929,-158.87416982,0.00012307,2]
[399228006,1766188778470,-182.42775107,0.00012307,2]
[399228007,1766188782122,-489.15319402,0.00012298,2]
[399228008,1766188784140,-227.11927634,0.00012298,2]
[399228009,1766188786279,-123.12195841,0.00012298,2]
[399228010,1766188786307,-63.39725911,0.00012307,2]
[399228011,1766188787809,-195.0,0.00012307,2]
[399228012,1766188789960,-225.3541488,0.00012307,2]
[399228013,1766188791457,-185.35041865,0.00012307,2]
[399228014,1766188794335,-152.02,0.00012307,2]
[399228015,1766188796451,-250.0,0.00012307,2]
[399228016,1766188798488,-185.3447763,0.00012307,2]